fUSD/lending_fUSD_20251221
["ID","MTS","AMOUNT","RATE_DAILY","PERIOD"]
[399369203,1766321442458,-150.0,0.00015409,2]
[399369204,1766321442466,-150.0,0.00015433,2]
[399369205,1766321442475,-150.0,0.00015435,2]
[399369206,1766321442484,-150.0,0.00015435,2]
[399369207,1766321442494,-150.0,0.00015449,2]
[399369208,1766321442503,-150.0,0.00015449,2]
[399369209,1766321442512,-150.0,0.00015458,2]
[399369210,1766321442521,-1530.25,0.00015459,2]
[399369211,1766321442530,-2500.0,0.00015464,2]
[399369212,1766321442539,-1189.47462246,0.00015464,2]
[399369213,1766321442549,-2500.0,0.00015464,2]
[399369214,1766321442559,-2500.0,0.00015464,2]
[399369215,1766321442567,-1057.65481763,0.00015464,2]
[399369216,1766321442577,-3292.0,0.00015469,2]
[399369217,1766321442586,-150.0,0.00015472,2]
[399369218,1766321442595,-150.0,0.00015482,2]
[399369219,1766321442604,-150.0,0.0001549,2]
[399369220,1766321442613,-150.0,0.00015509,2]
[399369221,1766321442622,-150.0,0.00015509,2]
[399369222,1766321442631,-150.0,0.0001553,2]
[399369223,1766321442641,-150.0,0.0001553,2]
[399369224,1766321442651,-150.0,0.0001553,2]
[399369225,1766321442660,-150.0,0.0001553,2]
[399369226,1766321442669,-150.0,0.00015542,2]
[399369227,1766321442679,-150.0,0.00015546,2]
[399369228,1766321442689,-150.0,0.00015571,2]
[399369229,1766321442698,-150.0,0.00015571,2]
[399369230,1766321442710,-150.0,0.00015579,2]
[399369231,1766321442719,-150.0,0.00015583,2]
[399369232,1766321442728,-150.0,0.00015583,2]
[399369233,1766321442738,-150.0,0.00015611,2]
[399369234,1766321442747,-150.0,0.00015611,2]
[399369235,1766321442757,-150.0,0.0001562,2]
[399369236,1766321442766,-150.0,0.00015627,2]
[399369237,1766321442777,-150.0,0.00015627,2]
[399369239,1766321442786,-150.0,0.00015652,2]
[399369241,1766321442795,-150.0,0.00015657,2]
[399369242,1766321442805,-150.0,0.00015657,2]
[399369243,1766321442817,-150.0,0.00015676,2]
[399369244,1766321442827,-150.0,0.00015692,2]
[399369245,1766321442836,-150.0,0.00015692,2]
[399369246,1766321442848,-150.0,0.00015694,2]
[399369247,1766321442859,-150.0,0.00015712,2]
[399369248,1766321442869,-150.0,0.00015712,2]
[399369249,1766321442879,-150.0,0.00015724,2]
[399369250,1766321442892,-150.0,0.00015731,2]
[399369251,1766321442903,-150.0,0.00015731,2]
[399369252,1766321442913,-150.0,0.00015733,2]
[399369253,1766321442923,-1530.25,0.00015733,2]
[399369254,1766321442932,-21035.83847623,0.00015752,2]
[399369255,1766321442941,-150.0,0.00015768,2]
[399369256,1766321442950,-150.0,0.00015773,2]
[399369257,1766321442959,-150.0,0.00015773,2]
[399369258,1766321442968,-150.0,0.00015773,2]
[399369259,1766321442977,-150.0,0.00015773,2]
[399369260,1766321442986,-150.0,0.00015797,2]
[399369261,1766321442995,-150.0,0.00015805,2]
[399369262,1766321443004,-150.0,0.00015805,2]
[399369263,1766321443013,-500.0,0.00015808,2]
[399369264,1766321443021,-150.0,0.00015813,2]
[399369265,1766321443031,-150.0,0.00015822,2]
[399369266,1766321443039,-150.0,0.00015842,2]
[399369267,1766321443048,-1795.81267335,0.00015844,2]
[399369268,1766321443058,-150.0,0.00015854,2]
[399369269,1766321443067,-150.0,0.00015854,2]
[399369270,1766321443076,-150.0,0.00015854,2]
[399369271,1766321443085,-150.0,0.0001587,2]
[399369272,1766321443094,-150.0,0.00015878,2]
[399369273,1766321443103,-150.0,0.00015878,2]
[399369274,1766321443112,-150.0,0.00015882,2]
[399369275,1766321443121,-150.0,0.00015894,2]
[399369276,1766321443130,-150.0,0.00015915,2]
[399369277,1766321443139,-150.0,0.00015919,2]
[399369278,1766321443148,-150.0,0.00015935,2]
[399369279,1766321443157,-150.0,0.00015935,2]
[399369280,1766321443166,-150.0,0.00015952,2]
[399369281,1766321443175,-150.0,0.00015952,2]
[399369282,1766321443184,-150.0,0.00015967,2]
[399369283,1766321443193,-150.0,0.00015967,2]
[399369284,1766321443202,-500.0,0.00015973,2]
[399369285,1766321443211,-500.0,0.00015973,2]
[399369286,1766321443220,-500.0,0.00015973,2]
[399369287,1766321443229,-500.0,0.00015973,2]
[399369288,1766321443238,-500.0,0.00015973,2]
[399369289,1766321443255,-500.0,0.00015973,2]
[399369290,1766321443264,-500.0,0.00015973,2]
[399369291,1766321443273,-500.0,0.00015973,2]
[399369292,1766321443282,-500.0,0.00015973,2]
[399369293,1766321443291,-500.0,0.00015973,2]
[399369294,1766321443300,-500.0,0.00015973,2]
[399369295,1766321443309,-500.0,0.00015973,2]
[399369296,1766321443318,-500.0,0.00015973,2]
[399369297,1766321443327,-500.0,0.00015973,2]
[399369298,1766321443336,-160.18740865,0.00015973,2]
[399369299,1766321443345,-500.0,0.00015973,2]
[399369300,1766321443354,-500.0,0.00015973,2]
[399369301,1766321443363,-500.0,0.00015973,2]
[399369302,1766321443372,-500.0,0.00015973,2]
[399369303,1766321443381,-511.36256137,0.00015973,2]
[399369304,1766321443390,-426.64941198,0.00015973,2]
[399369305,1766321443399,-500.0,0.00015973,2]
[399369306,1766321443408,-500.0,0.00015973,2]
[399369307,1766321443417,-500.0,0.00015973,2]
[399369308,1766321443426,-500.0,0.00015973,2]
[399369309,1766321443436,-500.0,0.00015973,2]
[399369310,1766321443444,-500.0,0.00015973,2]
[399369311,1766321443453,-500.0,0.00015973,2]
[399369312,1766321443463,-576.10062402,0.00015973,2]
[399369313,1766321443472,-500.0,0.00015973,2]
[399369314,1766321443481,-500.0,0.00015973,2]
[399369315,1766321443490,-500.0,0.00015973,2]
[399369316,1766321443499,-500.0,0.00015973,2]
[399369317,1766321443508,-500.0,0.00015973,2]
[399369318,1766321443517,-500.0,0.00015973,2]
[399369319,1766321443526,-500.0,0.00015973,2]
[399369320,1766321443535,-500.0,0.00015973,2]
[399369321,1766321443544,-500.0,0.00015973,2]
[399369322,1766321443553,-500.0,0.00015973,2]
[399369323,1766321443563,-500.0,0.00015973,2]
[399369324,1766321443572,-500.0,0.00015973,2]
[399369325,1766321443581,-378.15038662,0.00015973,2]
[399369326,1766321443591,-500.0,0.00015973,2]
[399369327,1766321443600,-500.0,0.00015973,2]
[399369328,1766321443609,-196.74,0.00015973,2]
[399369329,1766321443618,-150.0,0.00015975,2]
[399369331,1766321443628,-150.0,0.00015989,2]
[399369333,1766321443637,-550.54433387,0.00016,2]
[399369335,1766321443647,-1530.25,0.00016007,2]
[399369337,1766321443656,-3000.0,0.00016012,2]
[399369339,1766321443666,-1454.77156402,0.00016012,2]
[399369341,1766321443676,-3000.0,0.00016012,2]
[399369342,1766321443685,-150.0,0.00016016,2]
[399369343,1766321443694,-150.0,0.00016016,2]
[399369344,1766321443704,-150.0,0.00016016,2]
[399369345,1766321443715,-150.0,0.00016016,2]
[399369346,1766321443724,-150.0,0.00016026,2]
[399369347,1766321443733,-150.0,0.00016026,2]
[399369348,1766321443743,-150.0,0.00016052,2]
[399369349,1766321443752,-150.0,0.00016056,2]
[399369350,1766321443762,-150.0,0.00016063,2]
[399369351,1766321443772,-150.0,0.00016064,2]
[399369352,1766321443781,-150.0,0.00016097,2]
[399369353,1766321443790,-150.0,0.00016097,2]
[399369354,1766321443799,-150.0,0.000161,2]
[399369355,1766321443809,-150.0,0.000161,2]
[399369356,1766321443821,-150.0,0.00016113,2]
[399369357,1766321443830,-150.0,0.00016137,2]
[399369358,1766321443840,-150.0,0.00016137,2]
[399369359,1766321443849,-150.0,0.00016137,2]
[399369360,1766321443858,-150.0,0.00016137,2]
[399369361,1766321443869,-150.0,0.00016137,2]
[399369362,1766321443879,-150.0,0.00016137,2]
[399369363,1766321443888,-150.0,0.00016137,2]
[399369364,1766321443898,-150.0,0.00016161,2]
[399369365,1766321443908,-150.0,0.00016174,2]
[399369366,1766321443917,-150.0,0.00016174,2]
[399369367,1766321443927,-150.0,0.00016177,2]
[399369368,1766321443936,-150.0,0.00016177,2]
[399369369,1766321443946,-150.0,0.0001621,2]
[399369370,1766321443956,-150.0,0.00016211,2]
[399369371,1766321443968,-277.35679052,0.00016212,2]
[399369372,1766321443978,-311.1,0.00016212,2]
[399369373,1766321443987,-150.0,0.00016218,2]
[399369374,1766321443997,-150.0,0.00016222,2]
[399369375,1766321444006,-500.0,0.00016243,2]
[399369376,1766321444015,-500.0,0.00016243,2]
[399369377,1766321444024,-150.0,0.00016248,2]
[399369378,1766321444034,-150.0,0.00016248,2]
[399369379,1766321444044,-150.0,0.00016258,2]
[399369380,1766321444053,-150.0,0.00016258,2]
[399369381,1766321444063,-150.0,0.00016258,2]
[399369382,1766321444072,-150.0,0.00016258,2]
[399369383,1766321444082,-1530.25,0.00016281,2]
[399369384,1766321444091,-150.0,0.00016285,2]
[399369385,1766321444100,-150.0,0.00016299,2]
[399369386,1766321444109,-150.0,0.00016307,2]
[399369387,1766321444119,-150.0,0.00016307,2]
[399369388,1766321444127,-3389.0,0.00016319,2]
[399369389,1766321444136,-150.0,0.00016322,2]
[399369390,1766321444146,-150.0,0.00016322,2]
[399369391,1766321444155,-21035.83847623,0.00016326,2]
[399369392,1766321444164,-150.0,0.00016339,2]
[399369393,1766321444175,-150.0,0.00016339,2]
[399369394,1766321444185,-150.0,0.00016355,2]
[399369395,1766321444194,-150.0,0.00016359,2]
[399369396,1766321444203,-150.0,0.0001638,2]
[399369397,1766321444212,-150.0,0.00016392,2]
[399369398,1766321444222,-150.0,0.00016395,2]
[399369399,1766321444231,-150.0,0.00016395,2]
[399369400,1766321444240,-150.0,0.00016404,2]
[399369401,1766321444250,-150.0,0.0001642,2]
[399369402,1766321444259,-150.0,0.0001642,2]
[399369403,1766321444269,-150.0,0.0001642,2]
[399369404,1766321444278,-3800.0,0.00016422,2]
[399369405,1766321444288,-150.0,0.00016432,2]
[399369406,1766321444298,-196.74,0.00016436,2]
[399369407,1766321444307,-500.0,0.00016437,2]
[399369408,1766321444316,-500.0,0.00016437,2]
[399369409,1766321444326,-603.19209481,0.00016438,2]
[399369410,1766321444335,-603.19209481,0.00016438,2]
[399369411,1766321444345,-603.19209481,0.00016438,2]
[399369412,1766321444354,-603.19209481,0.00016438,2]
[399369413,1766321444364,-603.19209481,0.00016438,2]
[399369414,1766321444374,-603.19209481,0.00016438,2]
[399369415,1766321444385,-603.19209481,0.00016438,2]
[399369416,1766321444395,-603.19209481,0.00016438,2]
[399369417,1766321444404,-603.19209481,0.00016438,2]
[399369418,1766321444415,-603.19209481,0.00016438,2]
[399369419,1766321444427,-603.19209481,0.00016438,2]
[399369420,1766321444436,-603.19209481,0.00016438,2]
[399369421,1766321444446,-603.19209481,0.00016438,2]
[399369422,1766321444455,-603.19209481,0.00016438,2]
[399369423,1766321444466,-603.19209481,0.00016438,2]
[399369424,1766321444476,-603.19209481,0.00016438,2]
[399369425,1766321444486,-603.19209481,0.00016438,2]
[399369426,1766321444495,-603.19209481,0.00016438,2]
[399369427,1766321444505,-603.19209481,0.00016438,2]
[399369428,1766321444515,-603.19209481,0.00016438,2]
[399369429,1766321444524,-603.19209481,0.00016438,2]
[399369430,1766321444534,-603.19209481,0.00016438,2]
[399369431,1766321444544,-603.19209481,0.00016438,2]
[399369432,1766321444554,-603.19209481,0.00016438,2]
[399369433,1766321444564,-603.19209481,0.00016438,2]
[399369434,1766321444573,-603.19209481,0.00016438,2]
[399369435,1766321444582,-603.19209481,0.00016438,2]
[399369436,1766321444592,-603.19209481,0.00016438,2]
[399369437,1766321444601,-603.19209481,0.00016438,2]
[399369438,1766321444610,-603.19209481,0.00016438,2]
[399369439,1766321444619,-603.19209481,0.00016438,2]
[399369440,1766321444628,-603.19209481,0.00016438,2]
[399369441,1766321444638,-603.19209481,0.00016438,2]
[399369442,1766321444647,-603.19209481,0.00016438,2]
[399369443,1766321444656,-603.19209481,0.00016438,2]
[399369444,1766321444666,-603.19209481,0.00016438,2]
[399369445,1766321444675,-603.19209481,0.00016438,2]
[399369446,1766321444684,-603.19209481,0.00016438,2]
[399369447,1766321444693,-603.19209481,0.00016438,2]
[399369448,1766321444703,-603.19209481,0.00016438,2]
[399369449,1766321444712,-603.19209481,0.00016438,2]
[399369450,1766321444721,-603.19209481,0.00016438,2]
[399369451,1766321444730,-603.19209481,0.00016438,2]
[399369452,1766321444740,-603.19209481,0.00016438,2]
[399369453,1766321444749,-603.19209481,0.00016438,2]
[399369454,1766321444758,-603.19209481,0.00016438,2]
[399369455,1766321444768,-603.19209481,0.00016438,2]
[399369456,1766321444777,-603.19209481,0.00016438,2]
[399369457,1766321444787,-603.19209481,0.00016438,2]
[399369458,1766321444796,-603.19209481,0.00016438,2]
[399369459,1766321444806,-603.19209481,0.00016438,2]
[399369460,1766321444820,-603.19209481,0.00016438,2]
[399369461,1766321444829,-603.19209481,0.00016438,2]
[399369462,1766321444839,-603.19209481,0.00016438,2]
[399369463,1766321444849,-603.19209481,0.00016438,2]
[399369464,1766321444859,-603.19209481,0.00016438,2]
[399369465,1766321444868,-603.19209481,0.00016438,2]
[399369466,1766321444878,-603.19209481,0.00016438,2]
[399369467,1766321444893,-603.19209481,0.00016438,2]
[399369468,1766321444903,-603.19209481,0.00016438,2]
[399369469,1766321444912,-603.19209481,0.00016438,2]
[399369470,1766321444921,-603.19209481,0.00016438,2]
[399369471,1766321444931,-603.19209481,0.00016438,2]
[399369472,1766321444940,-5274.57976242,0.00016438,2]
[399369473,1766321444949,-5274.57976242,0.00016438,2]
[399369474,1766321444958,-5274.57976242,0.00016438,2]
[399369475,1766321444968,-5274.57976242,0.00016438,2]
[399369476,1766321444977,-5274.57976242,0.00016438,2]
[399369477,1766321444986,-5274.57976242,0.00016438,2]
[399369478,1766321444996,-5274.57976242,0.00016438,2]
[399369479,1766321445005,-5274.57976242,0.00016438,2]
[399369480,1766321445014,-5274.57976242,0.00016438,2]
[399369481,1766321445023,-5274.57976242,0.00016438,2]
[399369482,1766321445033,-5274.57976242,0.00016438,2]
[399369483,1766321445042,-5274.57976242,0.00016438,2]
[399369484,1766321445051,-5274.57976242,0.00016438,2]
[399369485,1766321445060,-5274.57976242,0.00016438,2]
[399369486,1766321445070,-5274.57976242,0.00016438,2]
[399369487,1766321445079,-5274.57976242,0.00016438,2]
[399369488,1766321445088,-5274.57976242,0.00016438,2]
[399369489,1766321445098,-5274.57976242,0.00016438,2]
[399369490,1766321445107,-5274.57976242,0.00016438,2]
[399369491,1766321445116,-5274.57976242,0.00016438,2]
[399369492,1766321445125,-5274.57976242,0.00016438,2]
[399369493,1766321445135,-5274.57976242,0.00016438,2]
[399369494,1766321445144,-5274.57976242,0.00016438,2]
[399369495,1766321445153,-5274.57976242,0.00016438,2]
[399369496,1766321445162,-5274.57976242,0.00016438,2]
[399369497,1766321445172,-5274.57976242,0.00016438,2]
[399369498,1766321445181,-5274.57976242,0.00016438,2]
[399369499,1766321445191,-553.63,0.00016438,2]
[399369500,1766321445200,-11351.2,0.00016438,2]
[399369501,1766321445209,-800.0,0.00016438,2]
[399369502,1766321445219,-3800.0,0.00016446,2]
[399369503,1766321445228,-150.0,0.00016452,2]
[399369504,1766321445237,-150.0,0.00016461,2]
[399369505,1766321445247,-150.0,0.00016469,2]
[399369506,1766321445256,-150.0,0.00016469,2]
[399369507,1766321445266,-150.0,0.00016477,2]
[399369508,1766321445275,-150.0,0.00016501,2]
[399369509,1766321445286,-150.0,0.00016501,2]
[399369510,1766321445295,-150.0,0.00016501,2]
[399369511,1766321445304,-150.0,0.00016501,2]
[399369512,1766321445314,-150.0,0.00016506,2]
[399369513,1766321445323,-6659.26,0.00016511,2]
[399369514,1766321445332,-1002.52786195,0.00016521,2]
[399369515,1766321445342,-1000.0,0.00016521,2]
[399369516,1766321445351,-1000.0,0.00016521,2]
[399369517,1766321445360,-1000.0,0.00016521,2]
[399369518,1766321445369,-1000.0,0.00016521,2]
[399369519,1766321445379,-1000.0,0.00016521,2]
[399369520,1766321445388,-726.54246888,0.00016521,2]
[399369521,1766321445397,-479.05040621,0.00016521,2]
[399369522,1766321445406,-1000.0,0.00016521,2]
[399369523,1766321445415,-1000.0,0.00016521,2]
[399369524,1766321445426,-748.8938967,0.00016521,2]
[399369525,1766321445435,-310.71387342,0.00016521,2]
[399369526,1766321445445,-1000.0,0.00016521,2]
[399369527,1766321445454,-1000.0,0.00016521,2]
[399369528,1766321445464,-1000.0,0.00016521,2]
[399369529,1766321445473,-311.84683956,0.00016521,2]
[399369530,1766321445483,-1000.0,0.00016521,2]
[399369531,1766321445492,-1000.0,0.00016521,2]
[399369532,1766321445501,-1000.0,0.00016521,2]
[399369533,1766321445510,-1000.0,0.00016521,2]
[399369534,1766321445520,-1000.0,0.00016521,2]
[399369535,1766321445529,-1000.0,0.00016521,2]
[399369536,1766321445538,-1000.0,0.00016521,2]
[399369537,1766321445548,-1000.0,0.00016521,2]
[399369538,1766321445558,-1000.0,0.00016521,2]
[399369539,1766321445568,-1000.0,0.00016521,2]
[399369540,1766321445577,-1000.0,0.00016521,2]
[399369541,1766321445587,-501.73216536,0.00016521,2]
[399369542,1766321445596,-1000.0,0.00016521,2]
[399369543,1766321445606,-1135.83054763,0.00016521,2]
[399369544,1766321445615,-1000.0,0.00016521,2]
[399369545,1766321445625,-169.31135743,0.00016521,2]
[399369546,1766321445635,-1000.0,0.00016521,2]
[399369547,1766321445644,-1000.0,0.00016521,2]
[399369548,1766321445654,-1000.0,0.00016521,2]
[399369549,1766321445664,-1000.0,0.00016521,2]
[399369550,1766321445674,-1000.0,0.00016521,2]
[399369551,1766321445684,-1000.0,0.00016521,2]
[399369552,1766321445694,-897.75313595,0.00016521,2]
[399369553,1766321445703,-1252.0,0.00016528,2]
[399369554,1766321445712,-3800.0,0.00016541,2]
[399369555,1766321445722,-150.0,0.00016541,2]
[399369556,1766321445732,-150.0,0.00016543,2]
[399369557,1766321445743,-150.0,0.00016543,2]
[399369558,1766321445752,-150.0,0.0001655,2]
[399369559,1766321445762,-1530.25,0.00016555,2]
[399369560,1766321445771,-500.0,0.0001656,2]
[399369561,1766321445781,-500.0,0.0001656,2]
[399369562,1766321445791,-3500.0,0.0001656,2]
[399369563,1766321445800,-1000.0,0.0001656,2]
[399369564,1766321445811,-150.0,0.00016562,2]
[399369566,1766321445825,-150.0,0.00016562,2]
[399369567,1766321445835,-150.0,0.0001658,2]
[399369568,1766321445845,-150.0,0.00016582,2]
[399369569,1766321445855,-150.0,0.00016582,2]
[399369570,1766321445865,-150.0,0.00016598,2]
[399369571,1766321445875,-150.0,0.00016617,2]
[399369572,1766321445885,-150.0,0.00016617,2]
[399369573,1766321445895,-150.0,0.00016622,2]
[399369574,1766321445904,-150.0,0.00016647,2]
[399369575,1766321445914,-150.0,0.00016647,2]
[399369576,1766321445925,-150.0,0.00016654,2]
[399369577,1766321445935,-6005.03218406,0.0001666,2]
[399369578,1766321445944,-150.0,0.00016663,2]
[399369579,1766321445954,-150.0,0.00016663,2]
[399369580,1766321445963,-150.0,0.00016691,2]
[399369581,1766321445973,-150.0,0.00016691,2]
[399369582,1766321445983,-150.0,0.00016695,2]
[399369583,1766321445993,-3800.0,0.00016702,2]
[399369584,1766321446004,-150.0,0.00016703,2]
[399369585,1766321446016,-150.0,0.00016703,2]
[399369586,1766321446026,-150.0,0.00016728,2]
[399369587,1766321446037,-150.0,0.00016732,2]
[399369588,1766321446047,-150.0,0.00016744,2]
[399369590,1766321446056,-150.0,0.00016744,2]
[399369591,1766321446066,-150.0,0.00016744,2]
[399369592,1766321446077,-150.0,0.00016744,2]
[399369593,1766321446087,-3800.0,0.00016752,2]
[399369594,1766321446096,-3800.0,0.00016756,2]
[399369595,1766321446106,-150.0,0.00016765,2]
[399369596,1766321446117,-150.0,0.00016765,2]
[399369597,1766321446126,-3800.0,0.00016779,2]
[399369598,1766321446137,-150.0,0.00016784,2]
[399369599,1766321446147,-150.0,0.00016792,2]
[399369600,1766321446157,-150.0,0.00016802,2]
[399369601,1766321446166,-3800.0,0.00016802,2]
[399369602,1766321446177,-150.0,0.00016816,2]
[399369603,1766321446186,-150.0,0.00016825,2]
[399369604,1766321446196,-150.0,0.00016825,2]
[399369605,1766321446206,-1530.26202621,0.00016828,2]
[399369606,1766321446215,-150.0,0.00016839,2]
[399369607,1766321446225,-150.0,0.00016839,2]
[399369608,1766321446235,-150.0,0.00016841,2]
[399369609,1766321446244,-3800.0,0.00016857,2]
[399369610,1766321446254,-150.0,0.00016865,2]
[399369611,1766321446264,-1795.81267335,0.00016872,2]
[399369612,1766321446274,-150.0,0.00016876,2]
[399369613,1766321446284,-150.0,0.00016889,2]
[399369614,1766321446293,-500.0,0.00016899,2]
[399369615,1766321446303,-25000.0,0.000169,3]
[399369616,1766321446313,-10000.0,0.000169,2]
[399369617,1766321446323,-17390.24673447,0.000169,3]
[399369618,1766321446332,-21035.83847623,0.000169,2]
[399369619,1766321446342,-170.00069611,0.000169,2]
[399369620,1766321446352,-268.84867516,0.000169,2]
[399369621,1766321446362,-802.56024595,0.000169,2]
[399369622,1766321446372,-6576.0,0.000169,2]
[399369623,1766321446382,-150.0,0.00016901,2]
[399369624,1766321446392,-150.0,0.00016905,2]
[399369625,1766321446401,-150.0,0.00016905,2]
[399369626,1766321446411,-150.0,0.00016912,2]
[399369627,1766321446421,-150.0,0.00016912,2]
[399369628,1766321446432,-150.0,0.00016938,2]
[399369629,1766321446441,-196.74,0.00016939,2]
[399369630,1766321446451,-150.0,0.00016946,2]
[399369631,1766321446461,-150.0,0.00016949,2]
[399369632,1766321446471,-362.0,0.00016959,2]
[399369633,1766321446480,-200.80764574,0.00016965,2]
[399369634,1766321446489,-150.0,0.00016973,2]
[399369635,1766321446499,-150.32225297,0.00016973,2]
[399369636,1766321446509,-2000.0,0.00016976,2]
[399369637,1766321446518,-1724.314,0.00016976,2]
[399369638,1766321446528,-196.73342915,0.00016977,2]
[399369639,1766321446537,-500.0,0.00016982,2]
[399369640,1766321446547,-500.0,0.00016982,2]
[399369641,1766321446557,-500.0,0.00016982,2]
[399369642,1766321446566,-500.0,0.00016982,2]
[399369643,1766321446576,-1507.8172461,0.00016983,2]
[399369644,1766321446585,-549.74315086,0.00016983,2]
[399369645,1766321446594,-152.0542516,0.00016986,2]
[399369646,1766321446604,-158.48329942,0.00016986,2]
[399369647,1766321446613,-155.64705311,0.00016986,2]
[399369648,1766321446622,-160.33063992,0.00016986,2]
[399369649,1766321446632,-164.52110484,0.00016986,2]
[399369650,1766321446642,-156.76422926,0.00016986,2]
[399369651,1766321446651,-150.82546103,0.00016986,2]
[399369652,1766321446660,-151.68546766,0.00016986,2]
[399369653,1766321446670,-151.72084113,0.00016986,2]
[399369654,1766321446679,-152.11986511,0.00016986,2]
[399369655,1766321446689,-157.75435091,0.00016986,2]
[399369656,1766321446700,-152.94375339,0.00016986,2]
[399369657,1766321446710,-162.0002847,0.00016986,2]
[399369658,1766321446721,-506.99804372,0.0001699,2]
[399369659,1766321446731,-506.99804372,0.0001699,2]
[399369660,1766321446741,-151.0,0.00016993,2]
[399369661,1766321446751,-1017.5919461,0.00016994,2]
[399369662,1766321446760,-4763.3668429,0.00016995,2]
[399369663,1766321446770,-5264.4941822,0.00016995,2]
[399369664,1766321446779,-20382.6782523,0.00016995,2]
[399369665,1766321446789,-1750.6522826,0.00016995,2]
[399369666,1766321446798,-4603.5978722,0.00016995,2]
[399369667,1766321446808,-500.0,0.00016995,2]
[399369668,1766321446819,-500.0,0.00016995,2]
[399369669,1766321446829,-495298.1127269,0.00016996,2]
[399369670,1766321446839,-151.0,0.00016996,2]
[399369671,1766321446848,-151.0,0.00016996,2]
[399369672,1766321446858,-151.0,0.00016996,2]
[399369673,1766321446868,-151.0,0.00016996,2]
[399369674,1766321446877,-241.263602,0.00016996,2]
[399369675,1766321446887,-293.018097,0.00016996,2]
[399369676,1766321446899,-293.018097,0.00016996,2]
[399369677,1766321446909,-293.018097,0.00016996,2]
[399369678,1766321446918,-293.018097,0.00016996,2]
[399369679,1766321446928,-945.676086,0.00016996,2]
[399369680,1766321446937,-945.676086,0.00016996,2]
[399369681,1766321446946,-945.676086,0.00016996,2]
[399369682,1766321446956,-945.676086,0.00016996,2]
[399369683,1766321446965,-151.0,0.00016996,2]
[399369684,1766321446974,-151.0,0.00016996,2]
[399369685,1766321446983,-151.0,0.00016996,2]
[399369686,1766321446992,-255.307319,0.00016996,2]
[399369687,1766321447002,-151.0,0.00016996,2]
[399369688,1766321447012,-151.0,0.00016997,2]
[399369689,1766321447022,-197.05869145,0.00016997,2]
[399369690,1766321447031,-500.0,0.00016999,2]
[399369691,1766321447041,-500.0,0.00016999,2]
[399369692,1766321447051,-500.0,0.00016999,2]
[399369693,1766321447061,-500.0,0.00016999,2]
[399369694,1766321447070,-219.76976975,0.00016999,2]
[399369695,1766321447080,-1107.84676159,0.00016999,5]
[399369696,1766321447090,-1107.8467616,0.00016999,5]
[399369697,1766321447102,-500.0,0.00016999,2]
[399369698,1766321447113,-243.37225568,0.00016999,2]
[399369699,1766321447124,-500.0,0.00016999,2]
[399369700,1766321447134,-500.0,0.00016999,2]
[399369701,1766321447143,-482.26053294,0.00016999,2]
[399369702,1766321447152,-300.0,0.00016999,2]
[399369703,1766321447161,-300.0,0.00016999,2]
[399369704,1766321447171,-666.0,0.00016999,2]
[399369705,1766321447181,-397.16543724,0.00016999,2]
[399369706,1766321447191,-300.0,0.00016999,2]
[399369707,1766321447200,-666.0,0.00016999,2]
[399369708,1766321447210,-300.0,0.00016999,2]
[399369709,1766321447220,-666.0,0.00016999,2]
[399369710,1766321447229,-401584.54194428,0.00017,2]
[399369711,1766321447239,-778.11063303,0.00017,2]
[399369712,1766321447248,-7032.92290676,0.00017,2]